[Event "19th Rochefort Chess Festival - Masters"]
[Site "Rochefort, France"]
[Date "2020.02.26"]
[Round "7.5"]
[White "Jeet, Jain"]
[Black "Prie, Eric"]
[Result "1-0"]
[TimeControl "1h30/40 - 30' + [30'']"]
[WhiteElo "2223"]
[BlackElo "2423"]

1. e4 {[%clk 01:20:50]} {[%emt 00:00:18]} c5 {[%clk 01:30:52]} {[%emt
00:00:08]} 2. Nf3 {[%clk 01:21:00]} {[%emt 00:00:20]} Nc6 {[%clk 01:31:13]}
{[%emt 00:00:10]} 3. Nc3 {[%clk 01:21:06]} {[%emt 00:00:24]} g6 {[%clk
01:31:34]} {[%emt 00:00:09]} 4. d4 {[%clk 01:20:09]} {[%emt 00:01:28]} cxd4
{[%clk 01:31:54]} {[%emt 00:00:09]} 5. Nxd4 {[%clk 01:20:36]} {[%emt 00:00:02]}
Bg7 {[%clk 01:32:16]} {[%emt 00:00:09]} 6. Nb3 {[%clk 01:16:55]} {[%emt
00:04:11]} Nf6 {[%clk 01:32:36]} {[%emt 00:00:09]} 7. Be2 {[%clk 01:17:20]}
{[%emt 00:00:05]} O-O {[%clk 01:32:56]} {[%emt 00:00:10]} 8. O-O {[%clk
01:17:46]} {[%emt 00:00:04]} a6 {[%clk 01:33:20]} {[%emt 00:00:06]} 9. Bg5
{[%clk 01:10:55]} {[%emt 00:07:21]} b5 {[%clk 01:22:37]} {[%emt 00:11:14]} 10.
a3 {[%clk 01:11:03]} {[%emt 00:00:22]} h6 {[%clk 01:14:40]} {[%emt 00:08:27]}
11. Bh4 {[%clk 01:08:30]} {[%emt 00:03:03]} d6 {[%clk 01:14:49]} {[%emt
00:00:20]} 12. f4 {[%clk 01:08:42]} {[%emt 00:00:18]} Bb7 {[%clk 01:14:24]}
{[%emt 00:00:55]} 13. Kh1 {[%clk 01:07:27]} {[%emt 00:01:45]} Rc8 {[%clk
01:11:31]} {[%emt 00:03:23]} 14. Bf3 {[%clk 01:03:07]} {[%emt 00:04:49]} Re8
{[%clk 01:01:58]} {[%emt 00:10:03]} 15. Qd2 {[%clk 00:53:32]} {[%emt 00:10:06]}
Nh7 {[%clk 00:38:15]} {[%emt 00:24:12]} 16. Nd1 {[%clk 00:42:57]} {[%emt
00:11:06]} g5 {[%clk 00:24:38]} {[%emt 00:14:07]} 17. fxg5 {[%clk 00:28:21]}
{[%emt 00:15:06]} hxg5 {[%clk 00:23:40]} {[%emt 00:01:27]} 18. Bxg5 {[%clk
00:28:42]} {[%emt 00:00:10]} Nxg5 {[%clk 00:24:03]} {[%emt 00:00:08]} 19. Qxg5
{[%clk 00:29:08]} {[%emt 00:00:03]} e6 {[%clk 00:23:00]} {[%emt 00:01:33]} 20.
Qh5 {[%clk 00:24:04]} {[%emt 00:05:34]} Ne5 {[%clk 00:22:32]} {[%emt 00:00:58]}
21. Ne3 {[%clk 00:23:31]} {[%emt 00:01:03]} Ng6 {[%clk 00:22:39]} {[%emt
00:00:22]} 22. c3 {[%clk 00:20:50]} {[%emt 00:03:12]} Qh4 {[%clk 00:19:08]}
{[%emt 00:04:00]} 23. Qxh4 {[%clk 00:19:52]} {[%emt 00:01:29]} Nxh4 {[%clk
00:19:30]} {[%emt 00:00:07]} 24. Rad1 {[%clk 00:19:34]} {[%emt 00:00:48]} Red8
{[%clk 00:18:58]} {[%emt 00:01:01]} 25. Rd3 {[%clk 00:18:40]} {[%emt 00:01:25]}
Nxf3 {[%clk 00:16:01]} {[%emt 00:03:28]} 26. gxf3 {[%clk 00:18:35]} {[%emt
00:00:35]} Kf8 {[%clk 00:16:19]} {[%emt 00:00:12]} 27. a4 {[%clk 00:10:34]}
{[%emt 00:08:31]} bxa4 {[%clk 00:14:49]} {[%emt 00:02:01]} 28. Na5 {[%clk
00:11:03]} {[%emt 00:00:01]} Ba8 {[%clk 00:13:15]} {[%emt 00:02:03]} 29. Nac4
{[%clk 00:07:10]} {[%emt 00:04:24]} Rc6 {[%clk 00:09:44]} {[%emt 00:04:00]} 30.
Ra1 {[%clk 00:06:02]} {[%emt 00:01:38]} Ke7 {[%clk 00:03:38]} {[%emt 00:06:36]}
31. Rxa4 {[%clk 00:06:28]} {[%emt 00:00:04]} Bh6 {[%clk 00:03:03]} {[%emt
00:01:05]} 32. Rb4 {[%clk 00:05:58]} {[%emt 00:01:01]} Rh8 {[%clk 00:02:35]}
{[%emt 00:00:57]} 33. Nb6 {[%clk 00:05:51]} {[%emt 00:00:38]} Bg5 {[%clk
00:01:15]} {[%emt 00:01:48]} 34. Nxa8 {[%clk 00:05:29]} {[%emt 00:00:52]} Rxa8
{[%clk 00:01:40]} {[%emt 00:00:05]} 35. Rb7+ {[%clk 00:05:55]} {[%emt
00:00:05]} Kf6 {[%clk 00:01:56]} {[%emt 00:00:13]} 36. Ng2 {[%clk 00:04:48]}
{[%emt 00:01:38]} a5 {[%clk 00:02:10]} {[%emt 00:00:16]} 37. f4 {[%clk
00:04:53]} {[%emt 00:00:25]} Bh6 {[%clk 00:02:32]} {[%emt 00:00:07]} 38. Rxd6
{[%clk 00:05:10]} {[%emt 00:00:13]} Rxd6 {[%clk 00:02:19]} {[%emt 00:00:44]} 39.
e5+ {[%clk 00:05:39]} {[%emt 00:00:02]} Kg6 {[%clk 00:02:37]} {[%emt 00:00:11]}
40. exd6 {[%clk 00:06:06]} {[%emt 00:00:03]} Rd8 {[%clk 00:02:28]} {[%emt
00:00:38]} 41. d7 {[%clk 00:25:00]} {[%emt 00:11:36]} Kf6 {[%clk 00:32:20]}
{[%emt 00:00:38]} 42. Kg1 {[%clk 00:23:10]} {[%emt 00:02:20]} Ke7 {[%clk
00:31:46]} {[%emt 00:01:03]} 43. Kf2 {[%clk 00:23:33]} {[%emt 00:00:08]} Kd6
{[%clk 00:16:34]} {[%emt 00:15:42]} 44. Ra7 {[%clk 00:22:21]} {[%emt 00:01:41]}
Kc6 {[%clk 00:16:59]} {[%emt 00:00:05]} 45. Rxa5 {[%clk 00:22:41]} {[%emt
00:00:10]} Rxd7 {[%clk 00:17:21]} {[%emt 00:00:08]} 46. Ke2 {[%clk 00:22:54]}
{[%emt 00:00:18]} Rd8 {[%clk 00:10:36]} {[%emt 00:07:14]} 47. Ra7 {[%clk
00:21:36]} {[%emt 00:01:48]} Rf8 {[%clk 00:08:48]} {[%emt 00:02:18]} 48. b4
{[%clk 00:18:15]} {[%emt 00:03:51]} Kb6 {[%clk 00:09:08]} {[%emt 00:00:09]} 49.
Ra2 {[%clk 00:18:42]} {[%emt 00:00:05]} Kb5 {[%clk 00:08:37]} {[%emt 00:01:00]}
50. Ra5+ {[%clk 00:18:09]} {[%emt 00:01:03]} Kc4 {[%clk 00:08:52]} {[%emt
00:00:15]} 51. Rc5+ {[%clk 00:18:11]} {[%emt 00:00:29]} Kb3 {[%clk 00:09:14]}
{[%emt 00:00:07]} 52. b5 {[%clk 00:18:31]} {[%emt 00:00:11]} Bg7 {[%clk
00:08:59]} {[%emt 00:00:44]} 53. c4 {[%clk 00:18:41]} {[%emt 00:00:20]} Bd4
{[%clk 00:08:50]} {[%emt 00:00:41]} 54. Rc6 {[%clk 00:17:31]} {[%emt 00:01:38]}
Kb4 {[%clk 00:08:06]} {[%emt 00:01:14]} 55. Ne3 {[%clk 00:15:38]} {[%emt
00:02:23]} Bc5 {[%clk 00:08:00]} {[%emt 00:00:36]} 56. Ng4 {[%clk 00:12:36]}
{[%emt 00:03:33]} Rh8 {[%clk 00:07:48]} {[%emt 00:00:41]} 57. b6 {[%clk
00:11:05]} {[%emt 00:02:02]} Rb8 {[%clk 00:07:32]} {[%emt 00:00:46]} 58. Ne5
{[%clk 00:11:19]} {[%emt 00:00:16]} Bxb6 {[%clk 00:07:22]} {[%emt 00:00:40]} 59.
Nd7 {[%clk 00:11:22]} {[%emt 00:00:27]} Rh8 {[%clk 00:07:36]} {[%emt 00:00:15]}
60. Nxb6 {[%clk 00:10:56]} {[%emt 00:00:56]} Rxh2+ {[%clk 00:07:48]} {[%emt
00:00:18]} 61. Kf3 {[%clk 00:10:12]} {[%emt 00:01:14]} Kc3 {[%clk 00:07:00]}
{[%emt 00:01:18]} 62. Rd6 {[%clk 00:08:06]} {[%emt 00:02:36]} Kb4 {[%clk
00:06:50]} {[%emt 00:00:40]} 63. Nd7 {[%clk 00:08:11]} {[%emt 00:00:25]} Kxc4
{[%clk 00:07:00]} {[%emt 00:00:20]} 64. Ne5+ {[%clk 00:08:39]} {[%emt
00:00:02]} Kc5 {[%clk 00:07:10]} {[%emt 00:00:20]} 65. Nxf7 {[%clk 00:09:06]}
{[%emt 00:00:03]} Rh3+ {[%clk 00:07:09]} {[%emt 00:00:31]} 66. Ke4 {[%clk
00:09:02]} {[%emt 00:00:34]} Kd5+ {[%emt 00:00:09]} 1-0




[ePGN "0.1;DGT LiveChess/2.2.5"]

[Event "19th Rochefort Chess Festival - Masters"]
[Site "Rochefort, France"]
[Date "2020.02.27"]
[Round "8.2"]
[White "Gareyev, Timur"]
[Black "Jeet, Jain"]
[Result "1-0"]
[TimeControl "1h30/40 - 30' + [30'']"]
[WhiteElo "2607"]
[BlackElo "2223"]

1. d4 {[%clk 01:27:16]} {[%emt 00:03:43]} d5 {[%clk 01:30:44]} {[%emt
00:00:16]} 2. c4 {[%clk 01:27:42]} {[%emt 00:00:04]} e6 {[%clk 01:31:04]}
{[%emt 00:00:10]} 3. Nc3 {[%clk 01:28:01]} {[%emt 00:00:11]} Be7 {[%clk
01:31:25]} {[%emt 00:00:08]} 4. cxd5 {[%clk 01:28:03]} {[%emt 00:00:28]} exd5
{[%clk 01:31:47]} {[%emt 00:00:08]} 5. Bf4 {[%clk 01:28:30]} {[%emt 00:00:03]}
Nf6 {[%clk 01:31:49]} {[%emt 00:00:28]} 6. e3 {[%clk 01:28:53]} {[%emt
00:00:08]} Bf5 {[%clk 01:31:35]} {[%emt 00:00:45]} 7. Nge2 {[%clk 01:29:21]}
{[%emt 00:00:02]} O-O {[%clk 01:30:37]} {[%emt 00:01:28]} 8. Ng3 {[%clk
01:29:35]} {[%emt 00:00:16]} Be6 {[%clk 01:30:39]} {[%emt 00:00:28]} 9. Bd3
{[%clk 01:28:55]} {[%emt 00:01:10]} c5 {[%clk 01:28:18]} {[%emt 00:02:52]} 10.
dxc5 {[%clk 01:29:23]} {[%emt 00:00:02]} Bxc5 {[%clk 01:27:58]} {[%emt
00:00:49]} 11. O-O {[%clk 01:29:51]} {[%emt 00:00:03]} Nc6 {[%clk 01:28:01]}
{[%emt 00:00:28]} 12. Rc1 {[%clk 01:30:19]} {[%emt 00:00:02]} d4 {[%clk
01:23:18]} {[%emt 00:05:13]} 13. Nce4 {[%clk 01:11:40]} {[%emt 00:19:09]} Be7
{[%clk 01:21:45]} {[%emt 00:02:02]} 14. Nc5 {[%clk 01:05:28]} {[%emt 00:06:42]}
Bxc5 {[%clk 01:12:19]} {[%emt 00:09:56]} 15. Rxc5 {[%clk 01:05:56]} {[%emt
00:00:02]} Nd5 {[%clk 01:12:36]} {[%emt 00:00:13]} 16. Qh5 {[%clk 01:05:10]}
{[%emt 00:01:16]} g6 {[%clk 01:10:24]} {[%emt 00:02:42]} 17. Qh6 {[%clk
01:05:20]} {[%emt 00:00:21]} Nxf4 {[%clk 00:29:11]} {[%emt 00:41:43]} 18. Rh5
{[%clk 00:57:27]} {[%emt 00:08:22]} Re8 {[%clk 00:29:05]} {[%emt 00:00:37]} 19.
exf4 {[%clk 00:54:55]} {[%emt 00:03:03]} Qf6 {[%clk 00:28:53]} {[%emt
00:00:42]} 20. Qxh7+ {[%clk 00:27:25]} {[%emt 00:28:00]} Kf8 {[%clk 00:29:15]}
{[%emt 00:00:08]} 21. Rb5 {[%clk 00:26:29]} {[%emt 00:01:26]} Qxf4 {[%clk
00:20:00]} {[%emt 00:09:45]} 22. Rxb7 {[%clk 00:20:09]} {[%emt 00:06:51]} Qf6
{[%clk 00:19:59]} {[%emt 00:00:30]} 23. f4 {[%clk 00:17:11]} {[%emt 00:03:28]}
Qg7 {[%clk 00:15:08]} {[%emt 00:05:21]} 24. Qh4 {[%clk 00:17:14]} {[%emt
00:00:27]} Bd5 {[%clk 00:15:09]} {[%emt 00:00:29]} 25. f5 {[%clk 00:10:57]}
{[%emt 00:06:47]} g5 {[%clk 00:12:41]} {[%emt 00:02:58]} 26. f6 {[%clk
00:06:12]} {[%emt 00:05:15]} gxh4 {[%clk 00:10:56]} {[%emt 00:02:16]} 27. fxg7+
{[%clk 00:06:40]} {[%emt 00:00:01]} Kxg7 {[%clk 00:08:32]} {[%emt 00:02:54]} 28.
Nh5+ {[%clk 00:06:46]} {[%emt 00:00:24]} Kh6 {[%clk 00:07:59]} {[%emt
00:01:03]} 29. Nf6 {[%clk 00:06:58]} {[%emt 00:00:18]} Ne5 {[%clk 00:08:23]}
{[%emt 00:00:06]} 30. Nxd5 {[%clk 00:02:45]} {[%emt 00:04:43]} Nxd3 {[%clk
00:08:47]} {[%emt 00:00:05]} 31. Rbxf7 {[%clk 00:02:04]} {[%emt 00:01:12]} Rad8
{[%clk 00:07:20]} {[%emt 00:01:57]} 32. R1f6+ {[%clk 00:01:59]} {[%emt
00:00:35]} Kh5 {[%clk 00:07:03]} {[%emt 00:00:47]} 33. Rf5+ {[%clk 00:02:15]}
{[%emt 00:00:14]} Kh6 {[%clk 00:06:59]} {[%emt 00:00:32]} 34. R5f6+ {[%clk
00:01:21]} {[%emt 00:01:24]} Kh5 {[%clk 00:07:21]} {[%emt 00:00:08]} 35. Ne7
{[%clk 00:01:11]} {[%emt 00:00:40]} Nxb2 {[%clk 00:03:34]} {[%emt 00:04:18]} 36.
Rh7+ {[%clk 00:01:14]} {[%emt 00:00:27]} Kg5 {[%clk 00:03:27]} {[%emt
00:00:36]} 37. Rhf7 {[%emt 00:00:22]} Nd3 {[%emt 00:00:23]} 1-0

[Event "19th Rochefort Chess Festival - Masters"]
[Site "Rochefort, France"]
[Date "2020.02.27"]
[Round "8.3"]
[White "Maiorov, Nikita"]
[Black "Colin, Vincent"]
[Result "1/2-1/2"]
[TimeControl "1h30/40 - 30' + [30'']"]
[WhiteElo "2506"]
[BlackElo "2359"]

1. d4 {[%clk 01:24:43]} {[%emt 00:06:15]} d5 {[%clk 01:30:13]} {[%emt
00:00:48]} 2. c4 {[%clk 01:25:08]} {[%emt 00:00:05]} c6 {[%clk 01:30:39]}
{[%emt 00:00:04]} 3. Nc3 {[%clk 01:25:07]} {[%emt 00:00:32]} Nf6 {[%clk
01:30:58]} {[%emt 00:00:10]} 4. e3 {[%clk 01:25:34]} {[%emt 00:00:03]} g6
{[%clk 01:31:17]} {[%emt 00:00:11]} 5. Nf3 {[%clk 01:25:58]} {[%emt 00:00:06]}
Bg7 {[%clk 01:31:41]} {[%emt 00:00:05]} 6. Be2 {[%clk 01:26:26]} {[%emt
00:00:03]} O-O {[%clk 01:32:03]} {[%emt 00:00:08]} 7. O-O {[%clk 01:26:53]}
{[%emt 00:00:03]} e6 {[%clk 01:32:27]} {[%emt 00:00:06]} 8. Qc2 {[%clk
01:27:03]} {[%emt 00:00:20]} b6 {[%clk 01:32:27]} {[%emt 00:00:30]} 9. b4
{[%clk 01:18:16]} {[%emt 00:09:17]} dxc4 {[%clk 01:27:45]} {[%emt 00:05:13]} 10.
Bxc4 {[%clk 01:18:37]} {[%emt 00:00:09]} b5 {[%clk 01:28:12]} {[%emt 00:00:04]}
11. Bd3 {[%clk 01:13:54]} {[%emt 00:05:13]} a5 {[%clk 01:26:00]} {[%emt
00:02:41]} 12. bxa5 {[%clk 01:14:19]} {[%emt 00:00:05]} Qxa5 {[%clk 01:25:17]}
{[%emt 00:01:13]} 13. Bd2 {[%clk 01:14:08]} {[%emt 00:00:41]} Qa3 {[%clk
01:22:12]} {[%emt 00:03:35]} 14. Bc1 {[%clk 00:58:21]} {[%emt 00:16:17]} Qa5
{[%clk 01:18:50]} {[%emt 00:03:52]} 15. Nd2 {[%clk 00:54:44]} {[%emt 00:04:06]}
Na6 {[%clk 01:10:56]} {[%emt 00:08:25]} 16. Nb3 {[%clk 00:52:19]} {[%emt
00:02:56]} Qc7 {[%clk 01:04:12]} {[%emt 00:07:14]} 17. a3 {[%clk 00:44:47]}
{[%emt 00:08:02]} e5 {[%clk 01:01:20]} {[%emt 00:03:22]} 18. Ne4 {[%clk
00:41:04]} {[%emt 00:04:13]} exd4 {[%clk 01:00:20]} {[%emt 00:01:30]} 19. exd4
{[%clk 00:38:37]} {[%emt 00:02:56]} Be6 {[%clk 00:58:52]} {[%emt 00:01:58]}
1/2-1/2

[Event "19th Rochefort Chess Festival - Masters"]
[Site "Rochefort, France"]
[Date "2020.02.27"]
[Round "8.1"]
[White "Vorobiov, Evgeny E."]
[Black "Van Den Doel, Erik"]
[Result "1/2-1/2"]
[TimeControl "1h30/40 - 30' + [30'']"]
[WhiteElo "2520"]
[BlackElo "2583"]

1. d4 {[%clk 01:30:57]} {[%emt 00:12:41]} d5 {[%clk 01:30:54]} {[%emt
00:00:06]} 2. c4 {[%clk 01:31:23]} {[%emt 00:00:05]} c6 {[%clk 01:31:18]}
{[%emt 00:00:06]} 3. Nf3 {[%clk 01:31:49]} {[%emt 00:00:04]} Nf6 {[%clk
01:31:44]} {[%emt 00:00:06]} 4. e3 {[%clk 01:32:13]} {[%emt 00:00:04]} Bf5
{[%clk 01:32:03]} {[%emt 00:00:41]} 5. Nc3 {[%clk 01:32:34]} e6 {[%clk
01:32:28]} 6. Nh4 {[%clk 01:33:00]} Be4 {[%clk 01:32:53]} 7. f3 {[%clk
01:33:23]} Bg6 {[%clk 01:33:19]} {[%emt 00:00:03]} 8. Qb3 {[%clk 01:33:43]}
{[%emt 00:00:10]} Qc7 {[%clk 01:33:42]} {[%emt 00:00:07]} 9. Bd2 {[%clk
01:33:40]} {[%emt 00:00:33]} Be7 {[%clk 01:34:07]} {[%emt 00:00:05]} 10. cxd5
{[%clk 01:32:37]} {[%emt 00:01:33]} cxd5 {[%clk 01:33:55]} {[%emt 00:00:41]} 11.
Nxg6 {[%clk 01:32:55]} {[%emt 00:00:12]} hxg6 {[%clk 01:34:21]} {[%emt
00:00:04]} 12. O-O-O {[%clk 01:33:14]} {[%emt 00:00:11]} Nc6 {[%clk 01:34:47]}
{[%emt 00:00:04]} 13. Kb1 {[%clk 01:33:13]} {[%emt 00:00:31]} a6 {[%clk
01:29:28]} {[%emt 00:05:49]} 14. Rc1 {[%clk 01:32:49]} {[%emt 00:00:54]} Nd7
{[%clk 01:23:34]} {[%emt 00:06:24]} 15. Bd3 {[%clk 01:26:55]} {[%emt 00:06:24]}
Na5 {[%clk 01:20:52]} {[%emt 00:03:13]} 16. Qa4 {[%clk 01:22:41]} {[%emt
00:04:44]} Nc4 {[%clk 01:06:59]} {[%emt 00:14:24]} 17. Bxc4 {[%clk 01:21:38]}
{[%emt 00:01:33]} dxc4 {[%clk 01:05:19]} {[%emt 00:02:09]} 18. d5 {[%clk
01:18:49]} {[%emt 00:03:19]} O-O-O {[%clk 00:59:45]} {[%emt 00:06:05]} 19. e4
{[%clk 01:06:25]} {[%emt 00:12:53]} 1/2-1/2

[Event "19th Rochefort Chess Festival - Masters"]
[Site "Rochefort, France"]
[Date "2020.02.27"]
[Round "8.5"]
[White "Yanayt, Eugene"]
[Black "Korneev, Oleg"]
[Result "0-1"]
[TimeControl "1h30/40 - 30' + [30'']"]
[WhiteElo "2206"]
[BlackElo "2505"]

1. d4 {[%clk 01:28:16]} {[%emt 00:02:42]} d5 {[%clk 01:21:31]} {[%emt
00:09:30]} 2. c4 {[%clk 01:28:34]} {[%emt 00:00:11]} c6 {[%clk 01:21:59]}
{[%emt 00:00:03]} 3. Nf3 {[%clk 01:27:13]} {[%emt 00:01:50]} Nf6 {[%clk
01:17:58]} {[%emt 00:04:31]} 4. Nc3 {[%clk 01:27:16]} {[%emt 00:00:27]} e6
{[%clk 01:18:20]} {[%emt 00:00:09]} 5. g3 {[%clk 01:23:50]} {[%emt 00:03:55]}
dxc4 {[%clk 01:18:40]} {[%emt 00:00:11]} 6. Bg2 {[%clk 01:23:21]} {[%emt
00:00:58]} b5 {[%clk 01:16:57]} {[%emt 00:02:13]} 7. Ne5 {[%clk 01:17:53]}
{[%emt 00:05:57]} Nd5 {[%clk 01:16:01]} {[%emt 00:01:27]} 8. O-O {[%clk
01:12:10]} {[%emt 00:06:14]} Bb7 {[%clk 01:14:17]} {[%emt 00:02:14]} 9. e4
{[%clk 00:59:39]} {[%emt 00:13:00]} Nxc3 {[%clk 01:14:31]} {[%emt 00:00:16]} 10.
bxc3 {[%clk 01:00:07]} {[%emt 00:00:03]} Nd7 {[%clk 01:14:37]} {[%emt
00:00:25]} 11. f4 {[%clk 00:56:24]} {[%emt 00:04:11]} Be7 {[%clk 01:14:52]}
{[%emt 00:00:16]} 12. Qh5 {[%clk 00:49:05]} {[%emt 00:07:49]} O-O {[%clk
01:15:05]} {[%emt 00:00:17]} 13. f5 {[%clk 00:47:30]} {[%emt 00:02:04]} exf5
{[%clk 01:12:36]} {[%emt 00:03:00]} 14. Nxd7 {[%clk 00:34:43]} {[%emt
00:13:16]} Qxd7 {[%clk 01:12:48]} {[%emt 00:00:18]} 15. Bh3 {[%clk 00:31:57]}
{[%emt 00:03:16]} Qd8 {[%clk 00:55:38]} {[%emt 00:17:41]} 16. Rxf5 {[%clk
00:22:54]} {[%emt 00:09:32]} Bc8 {[%clk 00:54:26]} {[%emt 00:01:43]} 17. Rf3
{[%clk 00:21:33]} {[%emt 00:01:50]} Bxh3 {[%clk 00:34:47]} {[%emt 00:20:09]} 18.
Qxh3 {[%clk 00:21:57]} {[%emt 00:00:06]} Qc8 {[%clk 00:31:05]} {[%emt
00:04:13]} 19. Qh5 {[%clk 00:17:27]} {[%emt 00:04:59]} Qe6 {[%clk 00:30:38]}
{[%emt 00:00:57]} 20. Rf4 {[%clk 00:14:10]} {[%emt 00:03:47]} g6 {[%clk
00:28:00]} {[%emt 00:03:09]} 21. Qe2 {[%clk 00:09:56]} {[%emt 00:04:43]} f5
{[%clk 00:26:17]} {[%emt 00:02:14]} 22. Qc2 {[%clk 00:05:30]} {[%emt 00:04:55]}
Bd6 {[%clk 00:21:35]} {[%emt 00:05:12]} 23. exf5 {[%clk 00:03:46]} {[%emt
00:02:14]} gxf5 {[%clk 00:17:32]} {[%emt 00:04:34]} 24. Rf2 {[%clk 00:04:09]}
{[%emt 00:00:06]} c5 {[%clk 00:17:02]} {[%emt 00:01:00]} 25. d5 {[%clk
00:02:42]} {[%emt 00:01:57]} Qe1+ {[%clk 00:13:03]} {[%emt 00:04:29]} 26. Rf1
{[%clk 00:00:55]} {[%emt 00:02:17]} Qe4 {[%clk 00:13:30]} {[%emt 00:00:03]} 27.
Qg2 {[%clk 00:00:55]} {[%emt 00:00:30]} Be5 {[%clk 00:11:26]} {[%emt 00:02:35]}
28. Bd2 {[%clk 00:01:23]} {[%emt 00:00:02]} Qxg2+ {[%clk 00:11:28]} {[%emt
00:00:28]} 29. Kxg2 {[%clk 00:01:51]} {[%emt 00:00:02]} Rad8 {[%clk 00:11:41]}
{[%emt 00:00:17]} 30. Bh6 {[%clk 00:02:06]} {[%emt 00:00:14]} Rf7 {[%clk
00:07:09]} {[%emt 00:05:03]} 31. Rad1 {[%clk 00:00:47]} {[%emt 00:01:49]} Bxc3
{[%clk 00:07:20]} {[%emt 00:00:20]} 32. d6 {[%clk 00:01:13]} {[%emt 00:00:03]}
Bd4 {[%clk 00:07:18]} {[%emt 00:00:33]} 33. Rde1 {[%clk 00:01:42]} {[%emt
00:00:02]} c3 {[%clk 00:05:00]} {[%emt 00:02:48]} 34. Re7 {[%clk 00:01:27]}
{[%emt 00:00:44]} b4 {[%clk 00:03:03]} {[%emt 00:02:28]} 35. Rfe1 {[%clk
00:01:46]} {[%emt 00:00:10]} Rxe7 {[%clk 00:02:46]} {[%emt 00:00:48]} 36. dxe7
{[%clk 00:01:11]} {[%emt 00:01:05]} Re8 {[%clk 00:03:15]} 37. g4 {[%clk
00:00:33]} {[%emt 00:01:07]} Kf7 {[%clk 00:03:23]} {[%emt 00:00:23]} 38. Bf8
{[%clk 00:00:32]} {[%emt 00:00:31]} c4 {[%clk 00:02:58]} {[%emt 00:00:56]} 0-1

[Event "19th Rochefort Chess Festival - Masters"]
[Site "Rochefort, France"]
[Date "2020.02.27"]
[Round "8.4"]
[White "Duboue, Peio"]
[Black "Dalaud, Dorian"]
[Result "1-0"]
[TimeControl "1h30/40 - 30' + [30'']"]
[WhiteElo "2421"]
[BlackElo "2236"]

1. e4 {[%clk 01:30:58]} {[%emt 00:00:01]} c5 {[%clk 01:30:07]} {[%emt
00:00:53]} 2. c3 {[%clk 01:30:59]} {[%emt 00:00:28]} d5 {[%clk 01:30:22]}
{[%emt 00:00:15]} 3. exd5 {[%clk 01:31:25]} {[%emt 00:00:05]} Qxd5 {[%clk
01:30:48]} {[%emt 00:00:04]} 4. d4 {[%clk 01:31:53]} {[%emt 00:00:02]} Nc6
{[%clk 01:31:01]} {[%emt 00:00:16]} 5. Nf3 {[%clk 01:32:17]} {[%emt 00:00:07]}
Bf5 {[%clk 01:31:04]} {[%emt 00:00:26]} 6. Be3 {[%clk 01:32:33]} {[%emt
00:00:14]} cxd4 {[%clk 01:31:21]} {[%emt 00:00:14]} 7. Nxd4 {[%clk 01:32:59]}
{[%emt 00:00:04]} Nf6 {[%clk 01:31:43]} {[%emt 00:00:08]} 8. Nxf5 {[%clk
01:30:26]} {[%emt 00:03:03]} Qxf5 {[%clk 01:31:53]} {[%emt 00:00:20]} 9. Bd3
{[%clk 01:29:14]} {[%emt 00:01:42]} Qd5 {[%clk 01:32:21]} {[%emt 00:00:02]} 10.
O-O {[%clk 01:29:29]} {[%emt 00:00:15]} O-O-O {[%clk 01:32:42]} {[%emt
00:00:08]} 11. Be2 {[%clk 01:29:22]} {[%emt 00:00:39]} Qxd1 {[%clk 01:33:09]}
{[%emt 00:00:03]} 12. Rxd1 {[%clk 01:28:27]} {[%emt 00:01:25]} Rxd1+ {[%clk
01:33:36]} {[%emt 00:00:03]} 13. Bxd1 {[%clk 01:28:53]} {[%emt 00:00:04]} Nd5
{[%clk 01:33:59]} {[%emt 00:00:08]} 14. Bd2 {[%clk 01:27:37]} {[%emt 00:01:45]}
e6 {[%clk 01:33:12]} {[%emt 00:01:17]} 15. Kf1 {[%clk 01:13:27]} {[%emt
00:14:40]} Be7 {[%clk 01:32:18]} {[%emt 00:01:24]} 16. Ke2 {[%clk 01:12:51]}
{[%emt 00:01:06]} e5 {[%clk 01:28:23]} {[%emt 00:04:25]} 17. a4 {[%clk
00:58:49]} {[%emt 00:14:32]} Nf4+ {[%clk 01:18:31]} {[%emt 00:10:23]} 18. Bxf4
{[%clk 00:57:26]} {[%emt 00:01:53]} exf4 {[%clk 01:18:33]} {[%emt 00:00:28]} 19.
Bb3 {[%clk 00:56:46]} {[%emt 00:01:09]} f6 {[%clk 01:15:03]} {[%emt 00:04:00]}
20. Nd2 {[%clk 00:53:06]} {[%emt 00:04:10]} Bc5 {[%clk 01:12:19]} {[%emt
00:03:14]} 21. Nc4 {[%clk 00:51:30]} {[%emt 00:02:07]} Kc7 {[%clk 00:59:18]}
{[%emt 00:13:31]} 22. Bc2 {[%clk 00:48:37]} {[%emt 00:03:23]} Re8+ {[%clk
00:40:49]} {[%emt 00:18:59]} 23. Kf3 {[%clk 00:47:18]} {[%emt 00:01:49]} Ne5+
{[%clk 00:40:34]} {[%emt 00:00:45]} 24. Nxe5 {[%clk 00:47:42]} {[%emt
00:00:06]} Rxe5 {[%clk 00:40:54]} {[%emt 00:00:10]} 25. Bxh7 {[%clk 00:42:24]}
{[%emt 00:05:48]} Rh5 {[%clk 00:41:12]} {[%emt 00:00:12]} 26. Be4 {[%clk
00:42:41]} {[%emt 00:00:12]} Rxh2 {[%clk 00:41:33]} {[%emt 00:00:08]} 27. Rd1
{[%clk 00:43:03]} {[%emt 00:00:09]} b6 {[%clk 00:38:32]} {[%emt 00:03:32]} 28.
Bf5 {[%clk 00:42:48]} {[%emt 00:00:45]} Rh5 {[%clk 00:34:54]} {[%emt 00:04:07]}
29. Bg4 {[%clk 00:36:14]} {[%emt 00:07:04]} Rg5 {[%clk 00:19:35]} {[%emt
00:15:50]} 30. Rd7+ {[%clk 00:34:50]} {[%emt 00:01:54]} Kc6 {[%clk 00:20:01]}
{[%emt 00:00:05]} 31. Rxa7 {[%clk 00:34:15]} {[%emt 00:01:04]} Bd6 {[%clk
00:18:37]} {[%emt 00:01:54]} 32. Bd7+ {[%clk 00:32:30]} {[%emt 00:02:16]} Kd5
{[%clk 00:14:12]} {[%emt 00:04:54]} 33. Rb7 {[%clk 00:32:28]} {[%emt 00:00:32]}
1-0




[ePGN "0.1;DGT LiveChess/2.2.5"]